Cogmind - Beta 15 @@@ ROGUE MODE // 2025.05.17 @ 21:37:49 Player: GiggleBox Result: Destroyed by P-70 Sage with High-powered Shock Rifle Performance ------------- Evolutions (5) 2500 Regions Visited (13) 2600 Robots Destroyed (199) 995 Value Destroyed (7931) 7931 Prototype IDs (22) 440 Alien Tech Used (0) 0 Bonus (1525) 1525 TOTAL SCORE: 15991 Bonus ------- High Alert Combat Kills 643 Follower Combat Kills 294 Entered Garrisons 200 Met Data Miner 300 Acquired ECA 300 Friendly Fire -212 Cogmind --------- Core Integrity 0/1000 Matter 175/300 Energy 249/300 System Corruption 23% Temperature Cool (0) Movement Core (250) Ox4 Location -5/Factory Parts ------- > --- POWER (1) -------- Angular Momentum Engine > --- PROPULSION (4) --- (None) > --- UTILITY (8) ------ Improved Salvage Targeting Computer > --- WEAPON (4) ------- (None) > --- INVENTORY (5) ---- Angular Momentum Engine Dirty Datajack (14) Dirty Bomb Trap Fire Trap Peak State ------------ > --- POWER ------------ Momentum-Ion Engine > --- PROPULSION ------- Light Treads Light Treads Armored Medium Treads Wheeled Armored-Carbon Exoskeleton > --- UTILITY ---------- Armored Scrap Engine Coolant Injector High-capacity Storage Unit Improved Signal Interpreter Improved Salvage Targeting Computer Precision Matter Filter Improved Kinecellerator > --- WEAPON ----------- Variable Charge Gun Advanced Assault Cannon Enhanced Gauss Cannon Accelerated Gauss Construct/G > --- INVENTORY -------- Angular Momentum Engine Angular Momentum Engine Angular Momentum Engine Matter Compressor Encrypted Comm Array Advanced Assault Cannon Advanced EMP Blaster Dirty Datajack Improved Datajack Great Maul Dirty Bomb Trap Dirty Bomb Trap Dirty Bomb Trap Fire Trap Fire Trap [Rating: 86] Favorites ----------- Power Heavy Ion Engine Engine Heavy Ion Engine Power Core Fission Core Propulsion Light Treads Treads Light Treads Wheel Constructs Utility Targeting Computer Device Armored Scrap Engine Storage High-capacity Storage Unit Processor Targeting Computer Protection Medium Armor Plating Weapon Heavy Assault Rifle Energy Gun Beamcaster Ballistic Gun Heavy Assault Rifle Ballistic Cannon Magnetic Acceleration Cannon Launcher Subdweller Shrapnel Launcher Impact Weapon Great Maul Special Melee Weapon Improved Datajack Build | -11 -10 -10 -8 -8 -8 -8 -8 -6 -6 -6 -6 -5 -5 ------- Run | Yrd Mat Sub Mat Gar Mat Sto Rec Fac Low Low Dat Pro Fac Slots Evolved 10 | . . . 4 . . . . 4 . . . . 2 Power . | . . . . . . . . . . . . . . Propulsion 2 | . . . 1 . . . . 1 . . . . . Utility 6 | . . . 2 . . . . 2 . . . . 2 Weapon 2 | . . . 1 . . . . 1 . . . . . Parts Attached 103 | 7 6 3 7 11 7 19 5 8 2 9 . 4 15 Power 12 | 1 1 . 1 2 . 3 . . . 1 . . 3 Engine 10 | 1 1 . 1 1 . 3 . . . 1 . . 2 Core 2 | . . . . 1 . . . . . . . . 1 Reactor . | . . . . . . . . . . . . . . Propulsion 28 | 2 . 1 2 2 5 4 2 2 1 2 . 2 3 Treads 28 | 2 . 1 2 2 5 4 2 2 1 2 . 2 3 Leg . | . . . . . . . . . . . . . . Wheel . | . . . . . . . . . . . . . . Hover . | . . . . . . . . . . . . . . Flight . | . . . . . . . . . . . . . . Utility 27 | 2 3 1 3 2 1 3 1 3 1 . . 2 5 Device 12 | 1 . . 1 . . 2 1 2 . . . 1 4 Storage 5 | 1 1 . 1 . 1 . . . 1 . . . . Processor 5 | . . . 1 1 . . . 1 . . . 1 1 Hackware . | . . . . . . . . . . . . . . Protection 5 | . 2 1 . 1 . 1 . . . . . . . Artifact . | . . . . . . . . . . . . . . Weapon 36 | 2 2 1 1 5 1 9 2 3 . 6 . . 4 Energy Gun 6 | . . . . . 1 3 1 . . . . . 1 Energy Cannon . | . . . . . . . . . . . . . . Ballistic Gun 16 | 2 2 . 1 2 . 4 . 3 . 1 . . 1 Ballistic Cannon 6 | . . . . 1 . . . . . 4 . . 1 Launcher 4 | . . 1 . . . 2 . . . . . . 1 Special Weapon . | . . . . . . . . . . . . . . Impact Weapon 2 | . . . . 2 . . . . . . . . . Slashing Weapon . | . . . . . . . . . . . . . . Piercing Weapon . | . . . . . . . . . . . . . . Special Melee Weapon 2 | . . . . . . . 1 . . 1 . . . Unidentified Prototypes 5 | . . . . . . 3 1 . . . . . 1 Parts Lost 68 | . 1 1 . 4 5 15 1 2 . 4 . 5 30 Power 6 | . . . . . . 2 . . . 1 . . 3 Propulsion 21 | . . . . 1 1 4 . 2 . . . 3 10 Utility 14 | . 1 1 . 1 2 2 . . . . . . 7 Weapon 27 | . . . . 2 2 7 1 . . 3 . 2 10 Highest Loss Streak 13 | . 1 1 . 2 2 4 1 1 . 4 . 3 13 To Critical Strikes 2 | . . . . . . . . . . . . . 2 Average Backups 15 | 1 8 14 13 19 18 18 19 19 20 18 17 14 9 Power 1 | . 1 1 1 2 2 . 2 2 2 1 1 1 2 Propulsion 4 | . . 2 2 6 7 8 9 7 5 4 4 3 . Utility 3 | . 2 5 4 4 3 3 2 1 3 4 4 2 1 Weapon 4 | . 3 5 5 6 4 4 4 7 6 5 5 4 2 Tool/Special . | . . . . . . . . . . . . . . Unused Backups 18 | . 4 1 1 2 1 1 1 3 1 . . . 3 Power 5 | . 2 . . 1 . . . . . . . . 2 Propulsion . | . . . . . . . . . . . . . . Utility 8 | . 1 1 1 1 . 1 1 1 . . . . 1 Weapon 5 | . 1 . . . 1 . . 2 1 . . . . Tool/Special . | . . . . . . . . . . . . . . Average Slot Usage (%) 92 | . 99 99 99 100 97 94 94 91 93 91 80 87 76 Engine 7 | . 14 14 9 8 . 8 9 6 6 5 6 6 4 Treads 24 | . 28 28 27 27 26 26 27 25 26 25 26 23 12 Device 9 | . 1 . 8 4 6 4 5 12 13 13 13 14 18 Storage 8 | . 14 14 9 9 9 9 9 6 6 6 6 6 4 Processor 9 | . . . 8 13 18 18 12 11 13 12 6 9 9 Protection 4 | . 11 13 9 9 . 2 3 . . . . . . Energy Gun 1 | . . . . . 2 6 8 2 . . . 1 3 Ballistic Gun 18 | . 28 22 26 24 22 14 16 23 26 18 6 7 . Ballistic Cannon 3 | . . . . . 1 . . . . 6 13 13 11 Peak Build Rating 86 | 7 12 12 22 28 34 39 48 57 56 61 54 64 86 Average Rating 40 | 5 10 11 20 24 27 32 41 55 55 58 54 59 64 On Entrance 33 | . 7 12 12 22 27 34 33 46 56 56 54 54 62 Naked Turns . | . . . . . . . . . . . . . . Heaviest Build 90 | 13 38 43 64 72 66 71 69 67 65 78 70 79 90 Greatest Support 91 | 40 40 40 62 62 84 84 65 88 83 91 83 84 67 Greatest Overweight (x) 6 | . . 1 1 1 1 1 1 . . . . 1 6 Average Overweight (x) . | . . . . 1 . . . . . . . . 1 Largest Inventory Capacity 20 | 8 15 15 20 20 20 20 20 20 20 20 20 20 20 Average Capacity 18 | 7 11 15 18 20 20 20 20 20 20 20 20 20 19 Most Carried 20 | 2 14 15 16 20 20 20 20 20 20 20 17 20 17 Average Carried 16 | 1 8 14 13 19 18 18 19 19 19 18 17 16 14 Final Capacity 20 | 8 15 15 20 20 20 20 20 20 20 20 20 20 5 Final Carried 20 | 2 14 14 16 20 19 20 20 20 20 17 17 15 4 Scrap Engine Consumption 94 | . . . . . . . 1 9 9 23 . 12 40 Constructs Created 8 | . . . . . . . . . . 1 . 1 6 Constructs Modified 23 | . . . . . . . . . . 3 . 6 14 Class Distribution -------------------- 46% | Scavenger-Gunner 25% | Mutant 9% | Gunner 7% | Tank 6% | Skirmisher 3% | Scavenger-Mutant Dominant Class ---------------- Mutant | -10/Materials Mutant | -10/Subcaves Tank | -8/Materials Tank | -8/Garrison Scavenger-Gunner | -8/Materials Scavenger-Gunner | -8/Storage Scavenger-Gunner | -8/Recycling Scavenger-Gunner | -6/Factory Scavenger-Gunner | -6/Lower Caves Scavenger-Gunner | -6/Lower Caves Scavenger-Gunner | -6/Data Miner Scavenger-Gunner | -5/Proximity Caves Skirmisher | -5/Factory Resources | -11 -10 -10 -8 -8 -8 -8 -8 -6 -6 -6 -6 -5 -5 ----------- Run | Yrd Mat Sub Mat Gar Mat Sto Rec Fac Low Low Dat Pro Fac Matter Collected 6509 | 280 325 241 488 645 608 830 265 452 372 768 . 508 727 Remotely 3562 | . . . 338 358 520 371 . 235 372 768 . 508 92 Salvage Created 8319 | 83 524 315 338 571 903 2015 263 219 578 1167 . 621 722 Parts 391 | 3 36 15 17 34 35 94 18 17 17 31 . 28 46 Haulers Intercepted 5 | . 1 . 1 . . 3 . . . . . . . Recyclers Shooed 11 | . 1 . . . 1 1 . 2 . . . . 6 Parts Field Recycled . | . . . . . . . . . . . . . . Retrieved Matter . | . . . . . . . . . . . . . . Parts Self-Destructed 59 | . . 13 . . . . . . 6 18 . 22 . Prevented 7 | . . . . . . . . . 4 . . 3 . Kills | -11 -10 -10 -8 -8 -8 -8 -8 -6 -6 -6 -6 -5 -5 ------- Run | Yrd Mat Sub Mat Gar Mat Sto Rec Fac Low Low Dat Pro Fac Combat Hostiles Destroyed 157 | . 9 10 4 15 17 35 7 4 6 18 . 16 16 Melee 3 | . . . . . . 3 . . . . . . . Guns 104 | . 9 6 4 13 6 22 7 4 6 10 . 10 7 Cannons 29 | . . . . . 4 4 . . . 7 . 6 8 AOE 21 | . . 4 . 2 7 6 . . . 1 . . 1 Classes Destroyed 21 | 2 4 1 2 . 2 4 1 . 2 2 . . 1 Worker 5 | . . . . . . 2 . 1 . . . . 2 Builder 6 | . . . . . . . . . . . . . 6 Tunneler 3 | 1 2 . . . . . . . . . . . . Hauler 5 | . 1 . 1 . . 3 . . . . . . . Recycler 9 | 1 2 . 1 . 3 2 . . . . . . . Minesweeper 2 | . . . . . . . . . . 1 . 1 . Operator 2 | . . . 1 . . . . 1 . . . . . Watcher 8 | . 2 . . . 2 2 . . . . . . 2 Swarmer 27 | . 4 2 . 9 3 . . . . . . 9 . Grunt 55 | . 5 . 2 3 6 17 2 2 4 6 . 3 5 Brawler 9 | . . . . . 2 1 . . . 4 . 2 . Duelist 9 | . . . . . . 4 . . . 3 . 2 . Protector 1 | . . . . . . 1 . . . . . . . Sentry 21 | . . . 2 3 5 9 1 . . 1 . . . Demolisher 1 | . . . . . . 1 . . . . . . . Hunter 6 | . . . . . 1 2 . . . . . . 3 Programmer 11 | . . . . . . . 1 2 . . . . 8 Subdweller 11 | . . 8 . . . . 3 . . . . . . Decomposer 2 | . . . . . . . . . . 1 . 1 . Packrat 3 | . . . . . . . . . 3 . . . . Samaritan 3 | . . . . . . . . . 2 1 . . . Thief 2 | . . . . . . . . . 2 . . . . Thug 1 | . . . . . . 1 . . . . . . . Butcher 4 | . . . . . . . . . . 4 . . . Mutant 1 | . . . . . . . . . . 1 . . . Best Kill Streak 8 | 2 3 3 2 4 7 7 2 2 3 5 . 4 8 Combat Bots Only 7 | . 2 3 2 4 7 7 2 1 3 5 . 4 2 Max Kills in Single Turn 7 | 1 1 2 1 2 3 3 1 1 1 2 . 1 7 Gunslinging 1 | . . . . 1 . . . . . 1 . . . Exploded 3 | . . 2 . 2 3 3 . . . 1 . . 1 Melee 1 | . . . . . . 1 . . . . . . . Uniques/NPCs Destroyed . | . . . . . . . . . . . . . . Combat | -11 -10 -10 -8 -8 -8 -8 -8 -6 -6 -6 -6 -5 -5 -------- Run | Yrd Mat Sub Mat Gar Mat Sto Rec Fac Low Low Dat Pro Fac Hostile Shots Fired 924 | . 47 36 20 86 86 142 24 7 19 48 . 102 307 Missed 255 | . 17 14 2 27 27 44 6 . 6 11 . 31 70 Hits 669 | . 30 22 18 59 59 98 18 7 13 37 . 71 237 Melee 31 | . . . . . . 6 . . 3 17 . 5 . Projectile 638 | . 30 22 18 59 59 92 18 7 10 20 . 66 237 AOE 3 | . . . . . . 2 . . . . . . 1 Critical Strikes 35 | . . . 3 3 2 7 . 1 . 9 . 1 9 Part Disruptions 1 | . . . . . . . . . . . . . 1 Damage Taken 12620 | . 303 512 280 692 950 1900 333 235 222 1125 . 1415 4653 Core 2188 | . 79 93 16 59 87 352 13 . 38 279 . 157 1015 Absorbed by Shields . | . . . . . . . . . . . . . . Regen/Repaired (Parts) 532 | . . . . . . . . 15 62 100 . 197 158 Core Remaining (%) 44 | 100 . 31 . . . . 4 . . . . 44 . Volleys Fired 478 | 5 43 25 22 36 50 77 15 9 22 37 . 47 90 Largest 4 | 2 2 2 3 3 3 3 3 4 4 4 . 4 4 Hottest 203 | 40 46 63 69 86 111 145 128 126 109 168 . 167 203 Shots Fired 1190 | 10 86 50 66 94 103 168 45 36 88 139 . 127 178 Gun 940 | 10 86 41 66 87 79 145 45 36 88 103 . 79 75 Cannon 225 | . . . . 5 17 16 . . . 36 . 48 103 Launcher 25 | . . 9 . 2 7 7 . . . . . . . Special . | . . . . . . . . . . . . . . Kinetic 1048 | 10 86 50 66 94 86 127 30 34 88 139 . 110 128 Thermal 94 | . . . . . . 25 12 . . . . 17 40 Explosive 3 | . . . . . . 3 . . . . . . . Electromagnetic 45 | . . . . . 17 13 3 2 . . . . 10 Robot Hit Streak 22 | 5 12 11 8 8 14 13 11 4 14 22 . 9 10 Robot Miss Streak 8 | 1 4 3 2 3 3 3 2 2 2 2 . 4 8 Penetration Max 1 | . . . . . . 1 . 1 . 1 . 1 1 Secondary Targets 26 | . 3 . . 6 2 5 . . 3 4 . 3 . Max Gunslinging Chain 2 | . 1 . . 2 1 1 . . 1 2 . 1 . Shots Hit Robots 793 | 8 51 36 44 53 58 134 48 20 66 103 . 65 107 Core Hits 404 | 4 26 19 14 23 46 94 11 10 28 47 . 35 47 Critical Kills 10 | . . 1 . 1 4 3 . 1 . . . . . Critical Parts Destroyed 18 | . . . . 1 1 9 . 1 . 5 . . 1 Critical Strikes 41 | . . 1 . 2 7 14 1 2 . 7 . . 7 Burn 2 | . . . . . . 2 . . . . . . . Destroy 28 | . . 1 . . 7 11 1 2 . 5 . . 1 Blast 8 | . . . . . . . . . . 2 . . 6 Smash 3 | . . . . 2 . 1 . . . . . . . Melee Attacks 67 | . . . . 23 . 20 18 . . 1 . . 5 Impact 44 | . . . . 23 . 20 1 . . . . . . Slashing . | . . . . . . . . . . . . . . Piercing 6 | . . . . . . . . . . 1 . . 5 Sneak Attacks 19 | . . . . . . 2 17 . . . . . . Combat Hostiles . | . . . . . . . . . . . . . . Follow-up Attacks . | . . . . . . . . . . . . . . Damage Inflicted 18995 | 66 522 1012 694 1222 1518 3772 639 401 1245 2469 . 1575 3860 Guns 11148 | 66 521 466 694 704 731 2027 639 372 1245 1704 . 821 1158 Cannons 4062 | . . . . . 136 327 . . . 764 . 751 2084 Explosions 2969 | . . 546 . 198 651 1008 . . . . . . 566 Melee 737 | . . . . 320 . 409 . . . 1 . . 7 Ramming 79 | . 1 . . . . 1 . 29 . . . 3 45 Kinetic 14810 | 66 521 1012 694 902 1280 1884 419 369 1245 2468 . 1444 2506 Thermal 1487 | . . . . . 98 559 186 . . . . 128 516 Explosive 914 | . . . . . . 348 . . . . . . 566 Electromagnetic 968 | . . . . . 140 571 34 3 . . . . 220 Impact 729 | . . . . 320 . 409 . . . . . . . Slashing . | . . . . . . . . . . . . . . Piercing 8 | . . . . . . . . . . 1 . . 7 Highest Corruption 23 | . . . . . . 2 3 . . . . . 23 Average Corruption 5 | . . . . . . 1 2 . . . . . 8 Corruption Purged . | . . . . . . . . . . . . . . Corruption Blocked . | . . . . . . . . . . . . . . Effects 72 | . . . . . . 9 15 . . . . . 48 Message Errors 16 | . . . . . . 2 4 . . . . . 10 Matter Fused 13 | . . . . . . . 1 . . . . . 12 Heat Flow Errors 12 | . . . . . . 2 6 . . . . . 4 Energy Discharges 9 | . . . . . . 1 1 . . . . . 7 Parts Rejected 5 | . . . . . . 1 . . . . . . 4 Data Loss (minor) 6 | . . . . . . . 2 . . . . . 4 Data Loss (major) 3 | . . . . . . 1 1 . . . . . 1 Misfires 4 | . . . . . . 2 . . . . . . 2 Alerts 2 | . . . . . . . . . . . . . 2 Misdirections 1 | . . . . . . . . . . . . . 1 Weapon Failures 1 | . . . . . . . . . . . . . 1 Overload Shots . | . . . . . . . . . . . . . . Overflow Damage 374 | . . 9 . 43 22 156 . . . . . 22 122 Projectiles 65 | . . . . . . . . . . . . 22 43 Explosions 181 | . . 9 . . 22 71 . . . . . . 79 Melee 128 | . . . . 43 . 85 . . . . . . . Knockbacks 38 | . . . . 2 . 5 . . . 1 . 9 21 Impact 5 | . . . . 2 . 2 . . . . . 1 . Kinetic 32 | . . . . . . 3 . . . 1 . 8 20 Secondary 1 | . . . . . . . . . . . . . 1 Self-Inflicted Damage 424 | . . 34 . . 101 182 . . . . . . 107 Shots 11 | . . 1 . . 2 6 . . . . . . 2 Rammed 14 | . 1 . . . . . . 4 . . . 1 8 Targets Rammed 17 | . 1 . . . . 1 . 5 . . . 1 9 Kicked 1 | . . . . . . . . . . . . . 1 Crushed 2 | . . . . . . 1 . 1 . . . . . Highest Temperature 278 | . 34 . 113 99 113 198 246 84 129 223 . 278 200 Average Temperature 62 | . 12 . 29 21 31 52 96 25 43 68 . 86 100 Received Heat Transfer 2367 | . 120 81 180 189 288 702 27 63 84 105 . 192 336 Effects 2 | . . . . . . . . . . 1 . 1 . Energy Bleed 1 | . . . . . . . . . . 1 . . . Interference 1 | . . . . . . . . . . . . 1 . Siege Activations . | . . . . . . . . . . . . . . Martial Activations . | . . . . . . . . . . . . . . Shielding Activations . | . . . . . . . . . . . . . . Robots Disrupted . | . . . . . . . . . . . . . . Combat Hostiles . | . . . . . . . . . . . . . . Robots Corrupted 2 | . . . . 1 . 1 . . . . . . . Combat Hostiles . | . . . . . . . . . . . . . . Parts Fried 1 | . . . . . . 1 . . . . . . . Impact Corruptions 5 | . . . . 1 . 4 . . . . . . . Robots Melted . | . . . . . . . . . . . . . . Combat Hostiles . | . . . . . . . . . . . . . . Parts Melted 7 | . . . . . . 2 1 . . 2 . 1 1 Heat Transferred 2822 | . . . . . 50 1047 333 . . . . 550 842 Parts Sabotaged . | . . . . . . . . . . . . . . Parts Stolen . | . . . . . . . . . . . . . . Parts Stripped . | . . . . . . . . . . . . . . Power Chain Reactions 4 | . . . . . . 4 . . . . . . . Alert | -11 -10 -10 -8 -8 -8 -8 -8 -6 -6 -6 -6 -5 -5 ------- Run | Yrd Mat Sub Mat Gar Mat Sto Rec Fac Low Low Dat Pro Fac Maximum Alert Level 3 | . . . . 3 3 3 1 . . . . . 1 Low Security (%) 65 | 100 100 . 100 35 . . 68 100 . . . . 95 Level 1 8 | . . . . 11 5 21 31 . . . . . 4 Level 2 13 | . . . . 23 91 26 . . . . . . . Level 3 12 | . . . . 29 3 52 . . . . . . . Level 4 . | . . . . . . . . . . . . . . Level 5 . | . . . . . . . . . . . . . . High Security . | . . . . . . . . . . . . . . Max Security . | . . . . . . . . . . . . . . Peak Influence 810 | 10 95 . 31 810 719 806 309 64 . . . . 244 Initial 394 | . . . 5 14 394 300 309 31 . . . . 44 Average 219 | 1 14 . 7 418 589 601 166 8 . . . . 59 Influence Increases 4895 | 10 290 50 133 876 621 1154 138 188 90 311 . 415 619 Destroy 0b10 Robot/C 2980 | . 180 40 80 420 340 720 100 100 80 280 . 320 320 Destroy 0b10 Robot/NC 230 | 10 35 . 15 10 25 55 5 10 . 10 . 5 50 Destroy Leader 516 | . 36 10 22 30 94 180 . 20 10 10 . 30 74 Allied During Kill 74 | . . . . 26 . 18 3 16 . 11 . . . Trap Triggered on 0b10 30 | . . . . . . . . . . . . . 30 Successful Hack 111 | . 39 . . 7 34 4 . 27 . . . . . Disable Machine 270 | . . . 15 15 45 135 15 15 . . . . 30 Anti-Garrison Action 250 | . . . . 250 . . . . . . . . . Destroy Structure 329 | . . . 1 88 83 42 15 . . . . . 100 Lose Combat Pursuer 105 | . . . . 30 . . . . . . . 60 15 Influence Decreases 4817 | 10 290 38 123 88 720 1071 857 205 148 167 144 344 612 Entered New Map 1564 | . . . 7 8 416 411 485 44 22 . 144 . 27 Time Decay 2533 | 10 280 38 116 . 254 490 342 133 126 127 . 304 313 Lost Part 610 | . 10 . . 40 50 150 10 . . 40 . 40 270 Lost Ally 110 | . . . . 40 . 20 20 28 . . . . 2 Squads Dispatched 22 | . 1 . . . 2 9 . 3 . 1 . 1 5 Investigation 3 | . 1 . . . . 1 . 1 . . . . . Extermination 4 | . . . . . . . . 1 . . . . 3 Reinforcement 5 | . . . . . 1 1 . 1 . . . . 2 Assault 7 | . . . . . 1 4 . . . 1 . 1 . Garrison 3 | . . . . . . 3 . . . . . . . Intercept . | . . . . . . . . . . . . . . Searches Triggered . | . . . . . . . . . . . . . . Construction Impeded 2 | . . . . . . 1 . . . . . . 1 Haulers Reinforced 1 | . . . . . . . . . . . . . 1 Active Scanning Responses . | . . . . . . . . . . . . . . Cargo Convoy Interrupts . | . . . . . . . . . . . . . . Stealth | -11 -10 -10 -8 -8 -8 -8 -8 -6 -6 -6 -6 -5 -5 --------- Run | Yrd Mat Sub Mat Gar Mat Sto Rec Fac Low Low Dat Pro Fac Distress Signals 8 | . 1 . . 1 1 1 2 . . . . . 2 Communications Jammed . | . . . . . . . . . . . . . . Distress Signals . | . . . . . . . . . . . . . . Times Spotted 225 | . 20 11 6 23 29 43 9 5 6 18 . 21 34 Peak Tracking Total 9 | . 4 2 3 4 7 9 2 2 3 9 . 7 4 Tactical Retreats 6 | . . . . 2 . . . . . . . 3 1 Traps | -11 -10 -10 -8 -8 -8 -8 -8 -6 -6 -6 -6 -5 -5 ------- Run | Yrd Mat Sub Mat Gar Mat Sto Rec Fac Low Low Dat Pro Fac Traps Triggered 8 | . 1 . . 4 . 2 . 1 . . . . . Indirectly 1 | . . . . . . 1 . . . . . . . Trap Hack Attempts . | . . . . . . . . . . . . . . Triggered . | . . . . . . . . . . . . . . Disarmed . | . . . . . . . . . . . . . . Reprogrammed . | . . . . . . . . . . . . . . Reused 6 | . . . . . . . . . . . . 3 3 Traps Extracted . | . . . . . . . . . . . . . . Installed 6 | . . . . . . . . . . . . 3 3 Triggered 6 | . . . . . . . . . . . . 3 3 Most Traps Carried 6 | . . . . . . . . . . . . 6 5 Machines | -11 -10 -10 -8 -8 -8 -8 -8 -6 -6 -6 -6 -5 -5 ---------- Run | Yrd Mat Sub Mat Gar Mat Sto Rec Fac Low Low Dat Pro Fac Machines Disabled 23 | . . . 1 5 3 9 1 1 1 . . . 2 Max in Single Turn 2 | . . . 1 2 1 1 . 1 1 . . . 2 Garrison Relay 2 | . . . . 2 . . . . . . . . . Phase Generator 1 | . . . . 1 . . . . . . . . . Machines Repaired . | . . . . . . . . . . . . . . Machines Dismantled . | . . . . . . . . . . . . . . Machines Sabotaged . | . . . . . . . . . . . . . . Overloaded Fab Kills . | . . . . . . . . . . . . . . Hacking | -11 -10 -10 -8 -8 -8 -8 -8 -6 -6 -6 -6 -5 -5 --------- Run | Yrd Mat Sub Mat Gar Mat Sto Rec Fac Low Low Dat Pro Fac Machines Accessed 33 | . 7 . 3 2 5 5 1 2 2 . 4 . 2 Terminals 22 | . 6 . 2 2 5 5 . 1 . . . . 1 Fabricators 1 | . . . . . . . . 1 . . . . . Repair Stations 1 | . 1 . . . . . . . . . . . . Recycling Units 1 | . . . . . . . . . . . . . 1 Scanalyzers . | . . . . . . . . . . . . . . Garrison Access 1 | . . . 1 . . . . . . . . . . Total Hacks 99 | . 25 . 8 3 12 11 3 3 2 . 28 . 4 Successful 63 | . 14 . 4 1 4 5 3 2 2 . 28 . . Failed 35 | . 10 . 4 2 8 6 . 1 . . . . 4 Catastrophic 5 | . 1 . . 1 1 1 . . . . . . 1 Database Lockouts 1 | . 1 . . . . . . . . . . . . Manual 45 | . 19 . 5 . 9 11 . . . . . . 1 Terminals 58 | . 23 . 7 3 12 11 . 1 . . . . 1 Fabricators 2 | . . . . . . . . 2 . . . . . Repair Stations 2 | . 2 . . . . . . . . . . . . Recycling Units 3 | . . . . . . . . . . . . . 3 Scanalyzers . | . . . . . . . . . . . . . . Garrison Access 1 | . . . 1 . . . . . . . . . . Terminal Hacks 43 | . 5 . 1 1 1 1 3 1 2 . 28 . . Record 12 | . . . . . . . 1 . . . 11 . . Part Schematic 11 | . 1 . . . . . . . . . 10 . . Robot Schematic 4 | . . . . . . . . . . . 4 . . Robot Analysis 2 | . 1 . 1 . . . . . . . . . . Prototype ID Bank 4 | . 1 . . . . . . . . . 3 . . Open Door 4 | . . . . 1 . 1 . . 2 . . . . Branch Access Points 2 | . . . . . 1 . . 1 . . . . . Terminal Index 1 | . 1 . . . . . . . . . . . . Hauler Manifests 1 | . 1 . . . . . . . . . . . . Release Object 2 | . . . . . . . 2 . . . . . . Fabricator Hacks 1 | . . . . . . . . 1 . . . . . Build 1 | . . . . . . . . 1 . . . . . Repair Station Hacks 1 | . 1 . . . . . . . . . . . . Scan Component 1 | . 1 . . . . . . . . . . . . Recycling Unit Hacks . | . . . . . . . . . . . . . . Scanalyzer . | . . . . . . . . . . . . . . Garrison Access Hacks 1 | . . . 1 . . . . . . . . . . Unlock Access 1 | . . . 1 . . . . . . . . . . Unauthorized Hacks 17 | . 8 . 2 . 3 4 . . . . . . . Terminals 17 | . 8 . 2 . 3 4 . . . . . . . Assimilate 1 | . 1 . . . . . . . . . . . . Botnet 2 | . 1 . . . 1 . . . . . . . . Operators 2 | . 1 . . . . 1 . . . . . . . Skim 12 | . 5 . 2 . 2 3 . . . . . . . Fabricators . | . . . . . . . . . . . . . . Repair Stations . | . . . . . . . . . . . . . . Recycling Units . | . . . . . . . . . . . . . . Scanalyzers . | . . . . . . . . . . . . . . Garrison Access . | . . . . . . . . . . . . . . Data Cores Recovered 1 | . . . 1 . . . . . . . . . . Used 1 | . . . 1 . . . . . . . . . . Hacking Detections 23 | . 7 . 2 1 5 5 . 1 . . . . 2 Full Trace Events 1 | . . . . . . 1 . . . . . . . Feedback Events . | . . . . . . . . . . . . . . Feedback Blocked . | . . . . . . . . . . . . . . Robot Schematics Acquired 4 | . . . . . . . . . . . 4 . . Robots Built . | . . . . . . . . . . . . . . Authchips . | . . . . . . . . . . . . . . Time . | . . . . . . . . . . . . . . Total Robot Build Rating . | . . . . . . . . . . . . . . Part Schematics Acquired 11 | . 1 . . . . . . . . . 10 . . Parts Built 2 | . . . . . . . . 2 . . . . . Authchips . | . . . . . . . . . . . . . . Time 95 | . . . . . . . . 95 . . . . . Total Part Build Rating 10 | . . . . . . . . 10 . . . . . Parts Repaired . | . . . . . . . . . . . . . . Time . | . . . . . . . . . . . . . . Parts Recycled . | . . . . . . . . . . . . . . Recycled Matter . | . . . . . . . . . . . . . . Retrieved Matter . | . . . . . . . . . . . . . . Retrieved Components . | . . . . . . . . . . . . . . Parts Scanalyzed . | . . . . . . . . . . . . . . Part Schematics Acquired . | . . . . . . . . . . . . . . Parts Damaged . | . . . . . . . . . . . . . . Bothacking | -11 -10 -10 -8 -8 -8 -8 -8 -6 -6 -6 -6 -5 -5 ------------ Run | Yrd Mat Sub Mat Gar Mat Sto Rec Fac Low Low Dat Pro Fac Used RIF Installer . | . . . . . . . . . . . . . . Robots Hacked . | . . . . . . . . . . . . . . Non-combat . | . . . . . . . . . . . . . . Combat . | . . . . . . . . . . . . . . Robot Hacks Applied . | . . . . . . . . . . . . . . Relay Couplers Released 10 | . . . . 10 . . . . . . . . . Machine Destruction 10 | . . . . 10 . . . . . . . . . Fabnet Peak Effective % . | . . . . . . . . . . . . . . Robots Rewired 16 | . . . . 2 . . 10 . . 2 . 2 . Allies Hacked . | . . . . . . . . . . . . . . Hacks Repelled . | . . . . . . . . . . . . . . Allies | -11 -10 -10 -8 -8 -8 -8 -8 -6 -6 -6 -6 -5 -5 -------- Run | Yrd Mat Sub Mat Gar Mat Sto Rec Fac Low Low Dat Pro Fac Total Allies 19 | . 1 . . 2 . 2 10 . . 2 . 2 . Largest Group 9 | . 1 1 . 2 . 2 9 8 . 2 1 2 2 Highest-Rated Group 136 | . 10 10 . 59 . 62 136 120 . 58 29 58 58 Highest-Rated Ally 39 | . 10 10 . 39 . 31 34 21 . 29 29 29 29 Initial Warlord ECA Mod 49 | . . . . . 7 7 7 5 5 5 5 4 4 Total Orders . | . . . . . . . . . . . . . . Ally Attacks 87 | . . . . 30 . 18 5 6 . 23 . 4 1 Total Damage 1327 | . . . . 350 . 247 236 69 . 345 . 57 23 Kills 14 | . . . . 6 . 3 2 1 . 2 . . . Allies Corrupted 1 | . . . . . . . . . . . . . 1 Allies Melted . | . . . . . . . . . . . . . . Intel | -11 -10 -10 -8 -8 -8 -8 -8 -6 -6 -6 -6 -5 -5 ------- Run | Yrd Mat Sub Mat Gar Mat Sto Rec Fac Low Low Dat Pro Fac Active Infowar (turns) 5611 | 45 231 . 464 1691 551 1289 316 . . . . . 1024 Sensors 1024 | . . . . . . . . . . . . . 1024 Seismic 276 | 45 231 . . . . . . . . . . . . Machine Analysis 4311 | . . . 464 1691 551 1289 316 . . . . . . Robot Analysis Total 2 | . 1 . 1 . . . . . . . . . . Derelict Logs Recovered 4 | . . . . . . . . . 2 1 . 1 . Drone Launches . | . . . . . . . . . . . . . . Drone Recoveries . | . . . . . . . . . . . . . . Exploration | -11 -10 -10 -8 -8 -8 -8 -8 -6 -6 -6 -6 -5 -5 ------------- Run | Yrd Mat Sub Mat Gar Mat Sto Rec Fac Low Low Dat Pro Fac Turns Passed 15718 | 92 1819 1224 469 1691 551 1289 772 939 1620 2017 142 1240 1853 Spaces Moved 7429 | 47 1010 606 183 607 229 553 340 545 965 1059 89 593 603 Core 12 | 7 . . . . . . . . . . . . 5 Treads 7262 | 40 1010 606 183 607 229 553 340 545 965 1059 89 593 443 Legs 47 | . . . . . . . . . . . . . 47 Wheels 108 | . . . . . . . . . . . . . 108 Hover . | . . . . . . . . . . . . . . Flight . | . . . . . . . . . . . . . . Fastest Speed 50 | 50 160 160 160 232 160 155 155 156 160 160 160 153 176 Average Speed 178 | 143 160 186 203 234 169 172 182 159 160 160 160 177 234 Slowest Speed 350 | 160 160 240 235 235 240 235 235 160 160 160 160 240 350 Overloaded Moves . | . . . . . . . . . . . . . . Propulsion Burnouts . | . . . . . . . . . . . . . . Robots Hopped . | . . . . . . . . . . . . . . Potential Cave-ins . | . . . . . . . . . . . . . . Cave-ins Triggered . | . . . . . . . . . . . . . . Exploration Rate (%) 52 | 5 91 46 20 53 41 84 60 10 81 98 71 65 10 Regions Visited 13 Branch Regions 7 Pre-discovered Areas 5 | . 2 . . . . . . . 2 . 1 . . Known Exits Taken 5 | . . 1 1 . 1 . 1 1 . . . . . Unknown Exits Taken 7 | 1 1 . . . . 1 . . 1 1 1 1 . Scrap Searched 11 | . . 3 . . . . . . 2 4 . 2 . Spaces Dug 12 | . . . . 3 7 . 1 . . . . 1 . Terrain Destroyed 400 | . . 85 . 88 101 35 3 . . 11 . 26 51 Melee 4 | . . . . 3 . . 1 . . . . . . Projectile 74 | . . . . . 9 2 2 . . 11 . 26 24 AOE 322 | . . 85 . 85 92 33 . . . . . . 27 Terrain Rammed . | . . . . . . . . . . . . . . Walls Destroyed . | . . . . . . . . . . . . . . Machines Disabled . | . . . . . . . . . . . . . . Actions | -11 -10 -10 -8 -8 -8 -8 -8 -6 -6 -6 -6 -5 -5 --------- Run | Yrd Mat Sub Mat Gar Mat Sto Rec Fac Low Low Dat Pro Fac Total 8857 | 60 1141 652 231 746 308 720 459 597 997 1292 89 677 888 Wait 476 | . 58 14 9 7 . 20 53 11 2 164 1 2 135 Move 7415 | 46 1009 605 182 605 228 552 339 544 964 1058 88 592 603 Hop . | . . . . . . . . . . . . . . Pick Up 85 | 2 16 3 6 8 6 13 3 10 3 . . 9 6 Fast Attach 28 | 7 1 . . . . 8 . 1 . 4 . . 7 Attach 60 | . . 2 5 5 4 11 2 5 1 5 . 8 12 Detach 10 | . . . 1 . . . 1 . . 3 . 2 3 Swap 91 | . 5 1 4 27 11 14 9 5 1 5 . 1 8 Drop 57 | . 8 2 2 4 9 4 4 7 4 2 . 4 7 Fire 478 | 5 43 25 22 36 50 77 15 9 22 37 . 47 90 Melee 67 | . . . . 23 . 20 18 . . 1 . . 5 Ram 1 | . . . . . . . . . . . . . 1 Kick 1 | . . . . . . . . . . . . . 1 Crush 15 | . 1 . . . . 1 . 5 . . . 1 7 Escape Stasis 8 | . . . . 8 . . . . . . . . . Rewire 59 | . . . . 23 . . 15 . . 13 . 8 . Trap 6 | . . . . . . . . . . . . 3 3 Miscellaneous . | . . . . . . . . . . . . . . Route ------- -11/Scrapyard -10/Materials (discovered 6 exits: *Mat x3 / [*Min x2] / [*Sub]) -10/Subcaves -8/Materials -8/Garrison (discovered 2 exits: *Mat x2) -8/Materials (discovered 3 exits: [*Fac] / *Sto x2) -8/Storage (discovered 2 exits: [*Fac] / *Rec) -8/Recycling -6/Factory (discovered 4 exits: *Low x2 / Ext x2) -6/Lower Caves -6/Lower Caves (discovered 2 exits: *Fac / *Dat) -6/Data Miner -5/Proximity Caves -5/Factory (discovered 1 exit: Fac) History --------- Turn | Location | Event 6 | -11/Scrapyard | Discovered new exit (range 14) 93 | -11/Scrapyard | Entered Materials 319 | -10/Materials | Build established: Mutant 404 | -10/Materials | Discovered new exit (range 7) 551 | -10/Materials | Discovered new exit (range 12) 767 | -10/Materials | Discovered new exit (range 12) 1189 | -10/Materials | Central database locked down 1452 | -10/Materials | Learned location of Storage (-8) 1528 | -10/Materials | Identified exit to Materials 1592 | -10/Materials | Learned Storage emergency access door positions 1693 | -10/Materials | Learned 4 Recycling zone layouts 1746 | -10/Materials | Learned location of Mines (-10) 1759 | -10/Materials | Discovered new exit (range 6) 1912 | -10/Materials | Entered Subcaves 1912 | -10/Subcaves | Accompanied by 1 ally 1913 | -10/Subcaves | Approached by a straggling Scientist 1913 | -10/Subcaves | Identified exit to Materials 2103 | -10/Subcaves | Disturbed a concealed Subdweller 2154 | -10/Subcaves | Core integrity fell below 50% 3087 | -10/Subcaves | Shifting Twisted Machinery released Mak. Laser 3136 | -10/Subcaves | Entered Materials 3136 | -8/Materials | Evolved 4 slots: Propulsion x1, Utility x2, Weapon x1 3436 | -8/Materials | Build established: Tank 3601 | -8/Materials | Identified exit to Garrison 3605 | -8/Materials | Entered Garrison 3725 | -8/Garrison | Triggered checkpoint 3764 | -8/Garrison | Garrison Relay disabled 4171 | -8/Garrison | Triggered checkpoint 4213 | -8/Garrison | Triggered checkpoint 4355 | -8/Garrison | Triggered checkpoint 4405 | -8/Garrison | Garrison Relay disabled 4489 | -8/Garrison | Discovered new exit (range 9) 4720 | -8/Garrison | Phase Generator disabled 4853 | -8/Garrison | Attempted to access garrison exit controls, blocked by remote lockdown 5221 | -8/Garrison | Discovered new exit (range 10) 5265 | -8/Garrison | Build established: Scavenger-Gunner 5296 | -8/Garrison | Entered Materials 5361 | -8/Materials | Destroyed 7 combat bots 5688 | -8/Materials | Discovered new exit (range 3) 5696 | -8/Materials | First assault squad dispatched 5790 | -8/Materials | Identified exit to Storage 5847 | -8/Materials | Entered Storage 5939 | -8/Storage | Lost 4 parts (1p1n2w) 5978 | -8/Storage | Core integrity fell below 50% 5982 | -8/Storage | Lost 3 parts (1n2w) 6115 | -8/Storage | Garrison activated, responded to threat 6247 | -8/Storage | First assault squad dispatched 6281 | -8/Storage | Met a pair of Derelict thieves 6398 | -8/Storage | Destroyed 7 combat bots 6433 | -8/Storage | Lost 3 parts (1p1u1w) 6459 | -8/Storage | Core integrity fell below 20% 6716 | -8/Storage | Discovered new exit (range 8) 6726 | -8/Storage | Lost 4 parts (2n1u1w) 7129 | -8/Storage | Used back door to open Recycling access 7129 | -8/Storage | Discovered new exit (range 4) 7136 | -8/Storage | Entered Recycling 7137 | -8/Recycling | Identified exit to Factory 7398 | -8/Recycling | Entered Scraplab 7451 | -8/Recycling | Found Prototype Device 7453 | -8/Recycling | Identified Scrap Engine 7908 | -8/Recycling | Entered Factory 7908 | -6/Factory | Accompanied by 8 allies 7908 | -6/Factory | Evolved 4 slots: Propulsion x1, Utility x2, Weapon x1 8094 | -6/Factory | Lost 4 allies 8124 | -6/Factory | Fabricated Magnetic Acceleration Cannon? 8279 | -6/Factory | Specialist reinforcements revealed to be Infiltrators 8820 | -6/Factory | Identified exit to Lower Caves 8820 | -6/Factory | Identified exit to Extension 8847 | -6/Factory | Entered Lower Caves 8871 | -6/Lower Caves | Met a Warlord Commander 8872 | -6/Lower Caves | Learned location of Warlord (-4) 8873 | -6/Lower Caves | Warlord Commander delivered Encrypted Comm Array 8876 | -6/Lower Caves | Found Encrypted Comm Array 9408 | -6/Lower Caves | Encountered a Warlord checkpoint 9440 | -6/Lower Caves | Learned location of 1 exit from Factory 9766 | -6/Lower Caves | Spotted B-75 Beast 10219 | -6/Lower Caves | Discovered new exit (range 12) 10467 | -6/Lower Caves | Entered another Lower Caves area 10711 | -6/Lower Caves | Attacked by a faux Warlord 10763 | -6/Lower Caves | Discovered new exit (range 11) 11352 | -6/Lower Caves | Learned Factory garrison access intel 11779 | -6/Lower Caves | Discovered new exit (range 8) 11829 | -6/Lower Caves | Attracted the attention of an 0b10 outpost 11917 | -6/Lower Caves | Lost 4 parts (1p3w) 12484 | -6/Lower Caves | Entered Data Miner 12484 | -6/Data Miner | Accompanied by 1 ally 12484 | -6/Data Miner | Discovered new exit (range 6) 12515 | -6/Data Miner | Met Data Miner 12552 | -6/Data Miner | Learned location of Section 7 (-2) 12552 | -6/Data Miner | Acquired the access code to Warlord's prototype stash 12580 | -6/Data Miner | Received God Mode back door access code from Data Miner 12626 | -6/Data Miner | Entered Proximity Caves 12626 | -5/Proximity Caves | Accompanied by 1 ally 13195 | -5/Proximity Caves | Learned Factory security intel 13477 | -5/Proximity Caves | Attracted the attention of an 0b10 outpost 13493 | -5/Proximity Caves | Core integrity fell below 50% 13615 | -5/Proximity Caves | Lost 3 parts (1n2w) 13825 | -5/Proximity Caves | Discovered new exit (range 12) 13866 | -5/Proximity Caves | Entered Factory 13866 | -5/Factory | Accompanied by 2 allies 13866 | -5/Factory | Evolved 2 slots: Utility x2 13867 | -5/Factory | Identified exit to Factory 13869 | -5/Factory | Loaded intel: 4 garrison access locations 14244 | -5/Factory | Lost 5 parts (2n1u2w) 14252 | -5/Factory | Build established: Skirmisher 15012 | -5/Factory | System corruption reached 10% 15256 | -5/Factory | Build established: Gunner 15357 | -5/Factory | Lost 13 parts (2p5n3u3w) 15377 | -5/Factory | Core integrity fell below 50% 15563 | -5/Factory | Build established: Mutant 15705 | -5/Factory | Core integrity fell below 20% 15719 | -5/Factory | Destroyed by P-70 Sage with High-powered Shock Rifle Last Messages --------------- 15711_ Adv. EMP Blaster destroyed. 15711_ U-05 Engineer destroyed. 15711_ Repair Station disabled. 15711_ Backup Power III tumbles out of repair station. 15711_ Backup Plating III tumbles out of repair station. 15711_ Backup Propulsion III tumbles out of repair station. 15711_ Backup Plating III tumbles out of repair station. 15711_ Backup Laser III tumbles out of repair station. 15711_ Backup Plating III tumbles out of repair station. 15711_ Backup Power III tumbles out of repair station. 15711_ U-05 Engineer lays Concrete. 15712_ K-01 Serf collects debris. 15713_ P-70 Sage resets P-70 Sage, system corruption cleaned. 15713_ R-10 Processor collects Corrupted Wheel. 15713_ U-05 Engineer builds a Door. 15714_ U-05 Engineer lays Concrete. 15715_ U-05 Engineer builds a Wall. 15716_ R-10 Processor collects Corrupted Terrain Scanner. 15716_ K-01 Serf collects debris. 15718_ U-05 Engineer lays Concrete. Map ----- +----------------------------------------------------+ | ?????????????????????????????????????????????????? | | ?????????????????????????????????????????????????? | | ?????????????????????????????????????????????????? | | ?????????????????????????????????????????????????? | | ?????????????????????????????????????????????????? | | ?????????????????????????????????????????????????? | | ?????????????????????????????????????????????????? | | ?????????????????????????????????????????????????? | | ?????????????????????????????????????????????????? | | ?????????????????????????????????????????????????? | | ?????????????????????????????????????????????????? | | ?????????????????????????????????????????????????? | | ?????????????????????????????????????????????????? | | ?????????????????????????????????????????????????? | | ?????????????????????????????????????????????????? | | ??????????????????????#######????????????????????? | | ?????????????????????? #????????????????????? | | ??????????????????? #????????????????????? | | ?????????????????""""""" #????????????????????? | | ???????????????# """"""" #????????????????????? | | ???????????????# """"""" #????????????????????? | | ???????????????# """ " #????????????????????? | | ???????????????# #????????????????????? | | ???????????????# = #????????????????????? | | ???????????????# *! #????????????????????? | | ???????????????# "=*! ! @ #????????????????????? | | ???????????????# "R ! %pp #????????????????????? | | ???????????????# """[=uu!/ #????????????????????? | | ???????????###########u#;;;;##################???? | | ??????? Ru ^ #???? | | ??????? % %^ #???? | | ??????? u k #???? | | ???????? #???? | | ???????? #???? | | ?????????########### ########+########## #??## | | ???????????????????# ?# ! #?# #?""" | | ???????????????????# ?# #?# #?""" | | ???????????????????# ?# """""" #?# # """ | | ???????????????????# ?# """""" #?# # | | ???????????????????# ?# """""" #?# + | | ???????????????????# ?# """""" ??# # | | ???????????????????# ?####+############# # | | ??????????????????? ????# #??# # #? | | ???????????????????# #???# #??# """ # #?### | | ?????????#########?# #???# #??# "Y # #???? | | ?????????# ### #???# #??# """ # #???? | | ########## "## #???# #??# + #???? | | # % ## ##### #??# """ # #???? | | # %"## #??# """ # #???? | | % #| % % "## #??# """ # ##### | +----------------------------------------------------+ Best States ------------- Heat Dissipation 50 Coolant Potential 65 Energy Generation 18 Energy Capacity 310 Matter Stores 300 Matter Capacity 300 Sight Range 16 Robot Scan Range 16 Terrain Scan Density 10 Armor Coverage 225 Evasion (%) 40 Targeting Accuracy 10 Recoil Reduction 4 Matter Filtering 50 Kinecelleration 40 Salvage Targeting 2 Item Schematics ----------------- Hcp. Storage Unit | -10/Materials | Hacked Combat Drone Bay | -6/Data Miner | Free Lgt. Regenerative Plating | -6/Data Miner | Free Cld. Gravmag System | -6/Data Miner | Free Imp. Energy Well | -6/Data Miner | Free Kinetic Spear | -6/Data Miner | Free Impulse Thruster | -6/Data Miner | Free Adv. Coolant Injector | -6/Data Miner | Free HERF Cannon | -6/Data Miner | Free Wave Gun | -6/Data Miner | Free Adv. Component Analysis Suite | -6/Data Miner | Free Robot Schematics ------------------ B-48 Gladiator | -6/Data Miner | Free E-15 Imp | -6/Data Miner | Free B-60 Warrior | -6/Data Miner | Free G-67 Veteran | -6/Data Miner | Free Fabricated ------------ Magnetic Acceleration Cannon | x2 | -6/Factory | Preloaded Repaired ---------- Nothing Alien Tech Used ----------------- None Achievements -------------- None Challenges ------------ None Game ------ Seed TripodCoilShockpuncher Manual? 0 Play Time 01:37:31 Cumulative 99.4 hours Start 2025.05.17 @ 20:01:23 End 2025.05.17 @ 21:37:49 Sessions 1 Manual Loads 0 Difficulty Rogue Special Mode None Game No. 103 Rogue 103 Adventurer 0 Explorer 0 Win Type - Total 1 Types 1/0/0/0/0/0/0/0/0/0 Lore% 57 Gallery% 53 Achievement% 46 Wizard Run 0 Options --------- Layout 0 ASCII 0 Keyboard 1 Movement Numpad Keybinds 0 Fullscreen 1 Font 24/Terminus Map View 76x50 Zoom Use 0% Tactical HUD 1 Map Filters NONE Filters NONE Steam 1 RUN: 52b1ef4a-7873-4d4f-b51f-39a16396177f